[Event "Czech Open-GM 2022"]
[Site "Pardubice"]
[Date "2022.07.24"]
[Round "3.13"]
[White "Kokoszczynski, Jan"]
[Black "Livaic, Leon"]
[Result "1/2-1/2"]
[ECO "D31"]
[WhiteElo "2297"]
[BlackElo "2576"]
[Annotator "TA"]
[PlyCount "81"]
[EventDate "2022.07.22"]
[EventType "swiss"]
[EventCountry "CZE"]
[SourceTitle "playchess.com"]
[Source "ChessBase"]
[SourceQuality "1"]
[TimeControl "40/5400+30:1800+30"]

{[%evp 14,81,16,18,22,25,28,14,20,14,47,40,47,40,38,36,46,39,37,27,20,10,71,39,28,10,50,40,48,50,68,68,70,57,72,43,50,43,43,43,43,43,43,33,33,33,33,14,16,4,6,11,11,12,12,0,0,0,0,0,0,0,0,0,6,0,19,0,0,0]} 1. d4 {[%emt 0:00:09]} d5 {[%emt 0:00:17]} 2. c4 {[%emt 0:00:39]} e6 {[%emt 0:00:07]} 3. Nc3 {[%emt 0:00:20]} Bb4 {[%emt 0:00:46]} 4. e3 {[%emt 0:02:10]} Nf6 {[%emt 0:00:26]} 5. Nf3 {[%emt 0:01:06]} O-O {[%emt 0:00:20]} 6. Bd2 {[%emt 0:00:13]} c5 {[%emt 0:03:04]} 7. a3 {[%emt 0:01:24]} Bxc3 {[%emt 0:00:12]} 8. Bxc3 {[%emt 0:00:08]} Ne4 {[%emt 0:06:56] 8...Ne4 is better than 8...cxd4. E51: Nimzo-Indian: Rubinstein: 4...0-0 5 Nf3 d5.} 9. Rc1 {[%emt 0:01:16]} b6 {[%emt 0:02:37]} 10. dxc5 {[%emt 0:06:53]} bxc5 {[%emt 0:00:14]} 11. Bd3 {[%emt 0:01:17] [#]} Bb7 $146 {[%emt 0:13:06]} ({Predecessor:} 11... Nxc3 12. Rxc3 Nd7 13. cxd5 exd5 14. O-O Bb7 15. Bf5 Rc8 16. Qc2 c4 17. Bxh7+ Kh8 {1-0 (41) Hayrapetyan,A (2371)-Babujian,L (2459) Yerevan 2018}) 12. Bxe4 {[%emt 0:13:28]} dxe4 {[%emt 0:01:57]} 13. Qxd8 {[%emt 0:00:16]} Rxd8 {[%emt 0:00:05]} 14. Nd2 {[%emt 0:00:10]} Nd7 {[%emt 0:08:41]} 15. Ke2 {[%emt 0:01:50]} a5 {[%emt 0:03:41]} 16. a4 {[%emt 0:05:08]} Bc6 {[%emt 0:00:18]} 17. b3 {[%emt 0:01:08]} (17. Ra1 {with more complications.} Nb6 18. b3 Rd3 19. Nb1) 17... Rdb8 {[%emt 0:00:57]} (17... f6 $11 {remains equal.}) 18. Kd1 {[%emt 0:03:45]} f6 {[%emt 0:04:36]} 19. Kc2 {[%emt 0:01:26]} Kf7 {[%emt 0:04:47]} 20. Rhd1 {[%emt 0:01:42]} Nb6 {[%emt 0:07:51][%cal Ob6a4]} 21. Ra1 {[%emt 0:02:10]} Rb7 {[%emt 0:00:45]} 22. Nb1 {[%emt 0:04:59]} Ke7 {[%emt 0:00:26]} 23. Rd2 {[%emt 0:03:32]} Rd7 {[%emt 0:07:22]} 24. Na3 {[%emt 0:06:40]} Rxd2+ {[%emt 0:00:16]} 25. Bxd2 {[%emt 0:00:24]} Nd7 {[%emt 0:00:07]} 26. Bc3 {[%emt 0:01:38]} Ne5 {[%emt 0:00:05]} 27. Bxe5 {[%emt 0:09:35]} fxe5 $14 {[%emt 0:00:04][%mdl 4096] Endgame KRB-KRN} 28. Rd1 {[%emt 0:00:07]} Rf8 {[%emt 0:00:09]} 29. Rd2 {[%emt 0:00:10]} g5 {[%emt 0:00:16]} 30. Kd1 {[%emt 0:04:17]} Rf6 {[%emt 0:02:50] The position is equal.} 31. Ke2 {[%emt 0:05:36]} Rh6 {[%emt 0:01:12]} 32. h3 {[%emt 0:00:28]} Rg6 {[%emt 0:00:19]} 33. Rd1 {[%emt 0:00:44]} h5 {[%emt 0:01:01]} 34. Nb5 {[%emt 0:00:32]} Rg8 {[%emt 0:00:26]} 35. Rd2 {[%emt 0:02:12]} h4 {[%emt 0:02:38]} 36. Nc3 {[%emt 0:03:21]} Rb8 {[%emt 0:03:03]} 37. Rb2 {[%emt 0:00:05]} Rd8 {[%emt 0:00:23]} 38. Rc2 {[%emt 0:03:16]} Kf7 {[%emt 0:14:31]} 39. Rc1 {[%emt 0:01:49]} Kg6 {[%emt 0:00:55]} 40. Rd1 {[%emt 0:09:22]} Rd3 {[%emt 0:04:30]} 41. Rc1 {[%emt 0:31:42] Weighted Error Value: White=0.06 (flawless) /Black=0.08 (flawless)} 1/2-1/2

[Event "Czech Open-GM 2022"]
[Site "Pardubice"]
[Date "2022.07.24"]
[Round "3.14"]
[White "Plat, Vojtech"]
[Black "Strebkovs, Andrejs"]
[Result "1/2-1/2"]
[ECO "C00"]
[WhiteElo "2554"]
[BlackElo "2283"]
[Annotator "TA"]
[PlyCount "155"]
[EventDate "2022.07.22"]
[EventType "swiss"]
[EventCountry "CZE"]
[SourceTitle "playchess.com"]
[Source "ChessBase"]
[SourceQuality "1"]
[TimeControl "40/5400+30:1800+30"]

{[%evp 14,155,1,-12,-9,-5,29,33,41,18,25,23,33,29,31,36,30,28,33,35,97,88,91,96,96,52,63,54,62,19,12,19,58,51,67,7,19,19,24,-20,-31,-27,-19,-9,-18,-11,0,0,0,0,2,25,50,41,79,15,17,-4,76,80,74,89,87,60,70,64,127,131,127,131,140,140,143,142,139,129,172,37,30,39,32,0,8,6,20,0,0,-35,-22,-37,0,0,0,0,0,0,0,0,0,6,6,0,0,0,0,0,35,0,0,0,0,0,0,0,29,29,37,6,6,6,7,7,7,7,24,7,16,0,0,0,0,-8,0,-8,-8,-8,-8,-16,0,-81,-79,-78,-77,-77]} 1. e4 {[%emt 0:00:04]} e6 {[%emt 0:00:04]} 2. Qe2 {[%emt 0:01:08]} c5 {[%emt 0:00:44]} 3. Nf3 {[%emt 0:00:14]} Nc6 {[%emt 0:00:54]} 4. g3 {[%emt 0:00:12]} d6 {[%emt 0:01:50]} 5. Bg2 {[%emt 0:00:49]} g6 {[%emt 0:00:32]} 6. c3 {[%emt 0:00:17]} Bg7 {[%emt 0:00:38]} 7. O-O {[%emt 0:00:16]} Nge7 {[%emt 0:00:17]} 8. Na3 {[%emt 0:03:24][%cal Od2d4]} O-O {[%emt 0:01:23] C00: French: Unusual White 2nd moves.} 9. Nc2 {[%emt 0:00:15]} Rb8 {[%emt 0:08:59]} 10. d4 {[%emt 0:00:41] [#]} cxd4 $146 {[%emt 0:01:02] White is slightly better.} ({Predecessor:} 10... Qc7 11. Rd1 b5 12. Be3 cxd4 13. cxd4 a6 14. Rac1 Qd7 15. Bf4 Bb7 16. e5 Nd5 {0-1 (50) Schneider,J (2046)-Koehler,I (2009) Germany 2017}) 11. Nfxd4 {[%emt 0:00:12]} Nxd4 {[%emt 0:05:24]} 12. Nxd4 {[%emt 0:02:57]} Nc6 {[%emt 0:00:25]} 13. Nc2 {[%emt 0:01:17]} b5 {[%emt 0:02:16]} 14. Rd1 {[%emt 0:13:58]} Qc7 {[%emt 0:03:16]} 15. Be3 {[%emt 0:01:18]} Ne5 {[%emt 0:02:42]} 16. b3 {[%emt 0:05:19]} f5 {[%emt 0:11:29]} (16... h5 $14) 17. exf5 $16 {[%emt 0:10:36]} gxf5 {[%emt 0:01:55]} 18. Nd4 {[%emt 0:12:07]} Bd7 {[%emt 0:03:48]} 19. Bg5 {[%emt 0:00:58]} Rfe8 {[%emt 0:03:39]} 20. Rac1 {[%emt 0:04:51]} Nf7 {[%emt 0:02:35]} 21. Qh5 {[%emt 0:05:12] 0x0.0005eadc2e67dp-1022s more active pieces.} Nxg5 {[%emt 0:08:56]} 22. Qxg5 {[%emt 0:00:05]} Qd8 {[%emt 0:03:20]} 23. Qd2 {[%emt 0:00:10]} Rb6 {[%emt 0:01:37] Inhibits Nc6.} 24. Re1 {[%emt 0:04:49]} (24. c4 $14 bxc4 25. bxc4) 24... Qf6 $11 {[%emt 0:00:57]} 25. Rcd1 {[%emt 0:03:04]} Kh8 {[%emt 0:03:48]} 26. h4 {[%emt 0:03:52]} Bh6 {[%emt 0:02:25]} 27. Qe2 {[%emt 0:03:13]} e5 {[%emt 0:02:34]} 28. Nc2 {[%emt 0:00:02]} f4 {[%emt 0:05:19]} 29. Nb4 $1 {[%emt 0:01:04] Strongly threatening Nd5.} fxg3 {[%emt 0:03:58]} 30. fxg3 {[%emt 0:00:26] aiming for Nd5.} Qg7 {[%emt 0:04:52]} 31. Rd3 {[%emt 0:10:05]} Rg8 {[%emt 0:04:32] White must now prevent ...Bf5.} 32. Rf1 {[%emt 0:01:06] Inhibits Bf5.} Bg4 {[%emt 0:02:09] A strong pair of Bishops.} 33. Qe1 {[%emt 0:02:17]} Bh5 {[%emt 0:01:20][%cal Oh6f4]} 34. Kh2 {[%emt 0:02:46]} (34. Nd5 $1 $16 {[%cal Rd5b6]}) 34... Rbb8 {[%emt 0:02:38]} 35. Nc6 {[%emt 0:02:43][%cal Bb4c6,Bc6e5,Be5d7][%mdl 32]} Rbf8 {[%emt 0:00:59] [#]} (35... Qg6 $2 36. Be4 Qe8 37. Nxb8 Qxb8 38. Rf6 $18) (35... Rbe8 $11 {keeps the balance.}) 36. Rxf8 $1 $16 {[%emt 0:00:52]} (36. Rxd6 $2 Rxf1 37. Bxf1 {[#]} Bf4 $1 $19 {[%mdl 512]}) 36... Qxf8 {[%emt 0:01:30] [#]} 37. Nxe5 $1 {[%emt 0:00:43]} Qf6 {[%emt 0:02:11]} 38. Nd7 {[%emt 0:03:07]} Qg6 {[%emt 0:00:50]} 39. Qe4 {[%emt 0:00:46]} Qxe4 {[%emt 0:01:35]} ({Better is} 39... Qg7 $14 40. Qd4 Bg6 41. Qxg7+ (41. Qxd6 $2 Bxd3 42. Qxd3 Bf4 $19) 41... Bxg7 42. Rxd6 Bxc3) 40. Bxe4 {[%emt 0:00:02]} Bg7 {[%emt 0:00:33] Against Nf6} 41. Rxd6 {[%emt 0:32:39]} Re8 {[%emt 0:04:38]} 42. Bd3 {[%emt 0:00:00]} Bxc3 {[%emt 0:02:25]} 43. Nf6 {[%emt 0:00:00]} Bxf6 {[%emt 0:03:35]} 44. Rxf6 {[%emt 0:00:00][%mdl 4096] Endgame KRB-KRB} Rd8 {[%emt 0:01:07]} 45. Bf5 {[%emt 0:00:00]} (45. Bxb5 $18 {Ra6 is the strong threat.} Rd2+ 46. Kh3) 45... Rd2+ $14 {[%emt 0:04:45]} 46. Kg1 $1 {[%emt 0:00:00]} Rxa2 {[%emt 0:01:35]} 47. Rf8+ {[%emt 0:00:00]} Kg7 {[%emt 0:00:07]} 48. Rb8 {[%emt 0:00:00]} Bg6 {[%emt 0:06:25]} 49. Bc8 {[%emt 0:00:00]} Bd3 {[%emt 0:01:20]} 50. Bb7 {[%emt 0:00:00]} a5 {[%emt 0:01:13]} 51. g4 {[%emt 0:00:00]} a4 {[%emt 0:02:26]} (51... Kf6 $5 {[%cal Ra2b2]}) 52. bxa4 {[%emt 0:00:00]} Rxa4 {[%emt 0:00:32]} 53. Bf3 {[%emt 0:00:00]} h6 {[%emt 0:01:10]} 54. Rb7+ {[%emt 0:00:00]} Kf6 {[%emt 0:00:14]} 55. Rb6+ {[%emt 0:00:00]} Kg7 {[%emt 0:00:12]} 56. Kf2 {[%emt 0:00:00]} Rb4 {[%emt 0:01:33]} 57. Ke3 {[%emt 0:00:00]} Bb1 {[%emt 0:00:17]} 58. h5 {[%emt 0:00:00]} Bc2 {[%emt 0:00:44]} 59. Be2 {[%emt 0:00:00]} Bb1 {[%emt 0:01:05]} 60. Rd6 {[%emt 0:01:32]} Re4+ {[%emt 0:00:37]} 61. Kd2 {[%emt 0:00:39]} Rb4 {[%emt 0:00:58]} 62. Rb6 {[%emt 0:00:48]} Rb2+ {[%emt 0:00:56]} 63. Ke3 {[%emt 0:00:16]} b4 {[%emt 0:00:25]} 64. Bc4 {[%emt 0:00:43]} b3 {[%emt 0:00:58]} 65. Bxb3 {[%emt 0:03:10]} Bc2 {[%emt 0:00:20]} 66. Rb7+ {[%emt 0:00:07]} Kf6 {[%emt 0:00:28]} 67. Rf7+ {[%emt 0:00:12]} Kg5 {[%emt 0:01:13]} 68. Bc4 {[%emt 0:04:28]} Kxg4 {[%emt 0:01:29]} (68... Rb4 $5 {[%cal Rb4c4]} 69. Rg7+ Kh4 $11) 69. Rg7+ {[%emt 0:00:30]} Kxh5 {[%emt 0:00:26]} 70. Be2+ {[%emt 0:01:29]} Kh4 {[%emt 0:00:03]} 71. Rg4+ {[%emt 0:00:25]} Kh3 {[%emt 0:00:07]} 72. Rg1 {[%emt 0:00:31]} Rb4 {[%emt 0:01:05]} 73. Bf3 {[%emt 0:01:00]} Kh4 {[%emt 0:00:32]} 74. Rg7 {[%emt 0:00:19]} Bf5 {[%emt 0:00:22]} 75. Rg8 {[%emt 0:00:27]} Bg4 {[%emt 0:00:23]} 76. Be4 {[%emt 0:00:05]} (76. Bxg4 $11 Rxg4 77. Rxg4+ Kxg4 78. Kf2) 76... Kg3 $17 {[%emt 0:00:31]} 77. Bg6 {[%emt 0:00:14]} Rb3+ {[%emt 0:00:22]} 78. Kd4 {Weighted Error Value: White=0.15 (very precise) /Black=0.11 (very precise)} 1/2-1/2

[Event "Czech Open-GM 2022"]
[Site "Pardubice"]
[Date "2022.07.24"]
[Round "3.15"]
[White "Smolik, Jachym"]
[Black "Stocek, Jiri"]
[Result "0-1"]
[ECO "E43"]
[WhiteElo "2291"]
[BlackElo "2548"]
[Annotator "TA"]
[PlyCount "90"]
[EventDate "2022.07.22"]
[EventType "swiss"]
[EventCountry "CZE"]
[SourceTitle "playchess.com"]
[Source "ChessBase"]
[SourceQuality "1"]
[TimeControl "40/5400+30:1800+30"]

{[%evp 18,90,11,4,36,33,16,34,39,37,37,47,52,63,76,86,103,71,87,89,82,82,82,76,83,37,56,47,80,13,31,20,32,-26,-25,-45,-43,-27,75,67,97,0,222,222,206,58,159,127,118,-57,-73,-193,-158,-157,-161,-150,-158,-157,-151,-158,-152,-151,-141,-197,-192,-277,-272,-400,-389,-2970,-2445,-12836,-5457,-2227,-1412]} 1. d4 {[%emt 0:02:07]} Nf6 {[%emt 0:06:20]} 2. c4 {[%emt 0:00:12]} e6 {[%emt 0:00:44]} 3. Nc3 {[%emt 0:00:07]} Bb4 {[%emt 0:00:32]} 4. e3 {[%emt 0:00:10]} b6 {[%emt 0:01:16]} 5. Nf3 {[%emt 0:00:27]} Bb7 {[%emt 0:03:04]} 6. Bd2 {[%emt 0:01:20]} O-O {[%emt 0:00:28]} 7. Bd3 {[%emt 0:00:15]} d6 {[%emt 0:01:12]} 8. O-O {[%emt 0:00:28]} Nbd7 {[%emt 0:00:05]} 9. a3 {[%emt 0:00:19]} Bxc3 {[%emt 0:00:07]} 10. Bxc3 {[%emt 0:00:12]} Re8 {[%emt 0:02:53] E21: Nimzo-Indian: 4 Nf3.} 11. Nd2 {[%emt 0:04:56]} e5 {[%emt 0:05:06]} 12. b4 {[%emt 0:08:41]} exd4 {[%emt 0:04:59] White is slightly better.} 13. exd4 {[%emt 0:01:09]} d5 {[%emt 0:03:21] [#]} 14. c5 $146 {[%emt 0:05:04]} ({Predecessor:} 14. Qc2 dxc4 15. Nxc4 Nf8 16. Ne5 Ne6 17. f4 h6 18. Rad1 Qd6 19. d5 Bxd5 20. Bb5 {1-0 (32) Decking,L (2128)-Faust,D (2036) Remote email 2013}) 14... Ne4 {[%emt 0:00:46]} 15. Bb2 {[%emt 0:07:04]} Ndf6 {[%emt 0:11:36]} 16. Nb3 {[%emt 0:13:03]} h6 {[%emt 0:06:48]} 17. Rc1 {[%emt 0:05:26]} c6 {[%emt 0:04:36]} 18. a4 {[%emt 0:05:34]} Bc8 {[%emt 0:17:26]} 19. f3 {[%emt 0:05:05] Prevents Ng4.} Ng5 {[%emt 0:00:24]} 20. Qd2 {[%emt 0:04:50]} Bd7 {[%emt 0:02:13]} 21. Ba3 {[%emt 0:02:30]} ({Better is} 21. a5 $16) 21... Ne6 {[%emt 0:02:04]} 22. b5 {[%emt 0:04:00]} Rc8 {[%emt 0:01:56]} 23. Rc2 {[%emt 0:01:30]} ({White should try} 23. Rfe1 $16) 23... Nh5 $1 $11 {[%emt 0:03:18]} 24. g3 $36 {[%emt 0:06:24][%mdl 2048] Against Nhf4. White is more active.} Ng5 {[%emt 0:01:51]} 25. f4 {[%emt 0:04:52]} (25. Qd1 $14) 25... Ne4 {[%emt 0:00:53]} 26. Qg2 {[%emt 0:01:54]} Nhf6 {[%emt 0:01:07]} 27. Rfc1 {[%emt 0:00:51]} bxc5 {[%emt 0:05:35]} (27... h5 $11 {remains equal.}) 28. dxc5 $16 {[%emt 0:01:33]} d4 {[%emt 0:00:58][%cal Od7e6]} 29. Bb2 {[%emt 0:01:46]} (29. Nxd4 $2 Bh3 $1 30. Nxc6 Qxd3 31. Qxh3 Qxa3 $19) (29. Rc4 $1 $16 {[%cal Rc4d4]}) 29... Be6 $2 {[%emt 0:00:50]} (29... cxb5 $2 30. Nxd4 (30. axb5 Nc3 $16) 30... bxa4 31. c6 $16) (29... Nxg3 $11 {and Black has nothing to worry.} 30. hxg3 (30. Qxg3 Re3 $15) 30... Re3) 30. Nxd4 $18 {[%emt 0:00:59]} (30. Bxe4 Bxb3 31. Bf5 (31. Bxc6 $2 Bxc2 32. Qxc2 d3 $19) 31... Bxc2 32. Qxc2 Rb8 $15) 30... Bd5 {[%emt 0:00:29][%cal Oe4c5] And now ...Nxc5! would win.} 31. Bc4 {[%emt 0:03:26] A strong pair of Bishops.} (31. bxc6 Nxc5 $1 32. Qd2 Nxd3 33. Qxd3 Be4 $15) (31. Qf1 $18) 31... cxb5 {[%emt 0:07:05]} (31... Bxc4 $1 $14 32. Rxc4 cxb5 33. axb5 Ng4) 32. Bxd5 {[%emt 0:01:21]} (32. axb5 Rxc5 33. Bf1 Qb6 $11) 32... Nxd5 {[%emt 0:00:20] [#]} 33. Re2 {[%emt 0:02:30] Prevents Ne3.} (33. axb5 $2 Ne3 34. Qf3 Nxc2 35. Rxc2 Rxc5 $19) (33. Nf5 $1 $16 {Threatens to win with Rd1.} Nb4 34. Nxg7 Nxc2 35. Nxe8 Qxe8 36. Rxc2) 33... Ndc3 $15 {[%emt 0:01:32] Prevents Rd1.} ({Don't play} 33... Ndf6 34. axb5 (34. Nxb5 Rxc5 35. Rxc5 Nxc5 $11) 34... Rxc5 35. Rce1 $14) 34. Rxc3 {[%emt 0:03:37]} (34. Bxc3 $17 Nxc3 35. Rxe8+ Qxe8 36. Qf2 Rxc5 37. axb5) 34... Qxd4+ {[%emt 0:01:46]} 35. Rce3 {[%emt 0:00:01]} Qxc5 {[%emt 0:00:08][%cal Oe4c3] Strongly threatening ...Nc3! 0x0.002486d572cbdp-1022s more active pieces.} 36. Kh1 {[%emt 0:01:06]} Nf6 {[%emt 0:02:02]} 37. Rxe8+ {[%emt 0:00:38]} Nxe8 {[%emt 0:00:16]} (37... Rxe8 38. Rxe8+ Nxe8 39. Qa8 $17) 38. Re5 {[%emt 0:01:22] [#]} Qc4 {[%emt 0:01:15]} 39. axb5 {[%emt 0:01:25]} Nd6 {[%emt 0:00:19]} 40. Re1 {[%emt 0:01:40]} (40. Qf3 $17) 40... Qxb5 $19 {[%emt 0:01:02]} ({And not} 40... Nxb5 41. Qe4 $17) 41. Bd4 {[%emt 0:11:14]} (41. Kg1 {keeps fighting.}) 41... a5 {[%emt 0:02:24][%cal Ba7a5,Ba5a4][%mdl 32]} 42. Qa2 {[%emt 0:07:31]} (42. Kg1 $142) 42... a4 {[%emt 0:07:46]} 43. Rb1 $2 {[%emt 0:05:12]} (43. Kg1) 43... Qd3 {[%emt 0:04:28] Black is clearly winning.} 44. Be5 {[%emt 0:01:37]} Qe4+ {[%emt 0:02:40]} (44... Rc2 $142 45. Qxc2 Qxc2 46. Rb8+ Kh7 47. Bxd6 Qd1+ 48. Kg2 Qxd6) 45. Kg1 {[%emt 0:00:11]} Rc2 {[%emt 0:00:15] Weighted Error Value: White=0.80/Black=0.42} 0-1

[Event "Czech Open-GM 2022"]
[Site "Pardubice"]
[Date "2022.07.24"]
[Round "3.16"]
[White "Winkelman, Albert"]
[Black "Noe, Christopher"]
[Result "0-1"]
[ECO "B18"]
[WhiteElo "2278"]
[BlackElo "2505"]
[Annotator "TA"]
[PlyCount "76"]
[EventDate "2022.07.22"]
[EventType "swiss"]
[EventCountry "CZE"]
[SourceTitle "playchess.com"]
[Source "ChessBase"]
[SourceQuality "1"]
[TimeControl "40/5400+30:1800+30"]

{[%evp 10,76,17,6,19,12,9,16,4,16,14,14,9,0,0,4,6,1,14,14,20,14,12,17,24,15,19,16,18,14,8,-11,41,39,52,58,29,4,6,-134,-139,-135,-116,-123,-112,-166,-175,-243,-250,-256,-229,-349,-311,-400,-396,-410,-403,-422,-422,-418,-418,-869,-862,-1597,-1518,-1688,-1557,-1386,-1275]} 1. e4 c6 2. d4 d5 3. Nc3 {[%cal Bb1c3,Bc3e4,Be4g3][%mdl 32]} dxe4 4. Nxe4 Bf5 5. Ng3 Bg6 6. Nh3 Nf6 $1 {[%cal Oc6c5][%mdl 4] is currently scoring better than 6...e6. B18: Classical Caro-Kann: 4...Bf5 sidelines.} 7. c3 Nbd7 8. Bc4 e6 {The position is equal.} 9. Nf4 Bd6 10. O-O Nd5 11. Ngh5 O-O 12. Nxg6 hxg6 13. Ng3 {[#]} Qh4 $146 {Against Ne4} ({Predecessor:} 13... Qc7 14. Re1 N7f6 15. Bb3 Rfe8 16. Qf3 e5 17. dxe5 Bxe5 18. Bg5 Bf4 19. Bxf4 Qxf4 20. Bxd5 Nxd5 21. Qxf4 Nxf4 22. Rxe8+ Rxe8 {0-1 (41) Horvath,A (2498)-Prohaszka,P (2591) Hungary 2017}) 14. Re1 N7f6 15. Nf1 c5 16. g3 Qh3 17. Bg5 cxd4 18. Qxd4 {next Bxf6 is good for White.} Bc7 19. Bxd5 Nxd5 $40 {[%mdl 128] Black is up to no good.} 20. c4 Bb6 (20... Nb4 $11 21. Qe4 Nc6) 21. Qe4 $14 Nf6 22. Bxf6 gxf6 23. Qxb7 (23. b4 $5 {[%cal Rc4c5]}) 23... Bd4 24. b3 Bxa1 $17 25. Rxa1 Qf5 26. Ne3 Qe5 27. Rd1 (27. Rc1 $17) 27... Rad8 $19 28. Rxd8 (28. Rf1 {keeps fighting.}) 28... Rxd8 {[%cal Bf8d8,Bd8d2,Bd2a2,Ba2b2,Bb2b1][%mdl 32]} 29. Qxa7 {[%mdl 4096] Endgame KQR-KQN} Rd2 30. c5 (30. a3 $142) 30... Qe4 31. Qa6 Qf3 32. Qf1 Rxa2 33. b4 Rb2 34. b5 {[#] Threatens to win with c6.} Qe4 {...Rb1 is the strong threat.} 35. c6 (35. Qg2 $142 Qxg2+ 36. Kxg2) 35... Rb1 {Black is clearly winning.} 36. Nd1 Qc2 37. c7 Qxc7 38. b6 Qd8 {Weighted Error Value: White=0.57/Black=0.07 (flawless)} 0-1

[Event "Czech Open-GM 2022"]
[Site "Pardubice"]
[Date "2022.07.24"]
[Round "3.17"]
[White "Paszewski, Mateusz"]
[Black "Haring, Filip"]
[Result "0-1"]
[ECO "E32"]
[WhiteElo "2277"]
[BlackElo "2451"]
[Annotator "TA"]
[PlyCount "60"]
[EventDate "2022.07.22"]
[EventType "swiss"]
[EventCountry "CZE"]
[SourceTitle "playchess.com"]
[Source "ChessBase"]
[SourceQuality "1"]
[TimeControl "40/5400+30:1800+30"]

{[%evp 10,60,25,17,8,21,34,6,20,0,48,33,34,37,37,0,0,0,115,101,102,90,131,133,118,119,137,60,79,-5,0,0,68,77,69,81,74,80,84,84,98,91,90,0,0,-29989,-29990,-29990,-29991,-29994,-29995,-29995,-29996]} 1. d4 Nf6 2. c4 e6 3. Nc3 Bb4 4. Qc2 O-O 5. e4 d6 6. e5 dxe5 {6...Nfd7 deserves study. E32: Nimzo-Indian: Classical (4 Qc2): 4...0-0.} 7. dxe5 Ng4 8. Nf3 {Black must now prevent h3.} Nc6 $1 {The position is equal.} 9. Bf4 {Rd1 is the strong threat.} f6 (9... Nd4 $11 10. Qd3 {[#]} f6 $1) 10. Rd1 $40 {[%mdl 128] White is up to no good.} Qe8 11. Bd3 Qh5 {[%cal Rf6e5] [#]} 12. O-O $146 ({Predecessor:} 12. exf6 e5 13. Be3 Rxf6 14. Be4 Bf5 15. h3 Nxe3 16. fxe3 Bxe4 17. Qxe4 Qg6 18. Qd5+ {0-1 (56) Benitah,Y (2408)-Plantet,S (2307) Val d'Isere 2004}) 12... fxe5 13. Bg3 Bc5 (13... Nd4 14. Nxd4 exd4 15. Nb5 $16) (13... Rxf3 $1 $11 14. gxf3 Nf6) 14. Be4 Nd4 15. Qd3 {[%cal Rf3d4]} Bd7 16. h3 {[%mdl 64] Deflection} Nf6 17. Nxe5 Rad8 {[%cal Od7a4]} 18. Qb1 (18. Bxb7 $16 {[%cal Ob2b4] Threatens to win with b4!} Be8 19. a3) 18... Ba4 $14 19. Nxa4 ({White should play} 19. b3 $16 Bc6 20. Bxc6 (20. Nxc6 bxc6 21. Bxc7 Rd7 $14) 20... bxc6 21. Kh1) 19... Ne2+ (19... Nxe4 {seems wilder.} 20. Qxe4 Ne2+ 21. Qxe2 Qxe2 22. Rde1 Bxf2+ 23. Bxf2 Qc2) 20. Kh2 Nxg3 (20... Rxd1 $1 $11 21. Qxd1 (21. Rxd1 $2 {too greedy.} Bxf2 22. Bf3 Bxg3+ 23. Kh1 Qxe5 $19) 21... Nxe4 22. Nxc5 N4xg3 23. fxg3 Rxf1 24. Qxf1 Qxe5) 21. fxg3 Rxd1 22. Qxd1 Qxe5 23. Nxc5 Qxc5 (23... Nxe4 $2 24. Rxf8+ Kxf8 25. Nd7+ Ke7 26. Nxe5 $18) 24. Bxb7 c6 25. Rf3 e5 {[%cal Be6e5,Be5e4][%mdl 32]} 26. Qa4 ({Better is} 26. Qg1 $16 Qd6 27. c5 (27. Qxa7 Ng4+ 28. hxg4 Qh6+ 29. Kg1 Qc1+ 30. Kh2 Qh6+ 31. Kg1 Qc1+ 32. Kh2 Qh6+ $11)) 26... e4 $11 27. Rb3 {[%mdl 8192] [#]} (27. Qa3 $11 Qh5 28. Rf4) 27... Ng4+ $1 {[%mdl 512] Black mates.} 28. hxg4 Rf1 29. g5 h5 {[%cal Bh7h5,Bh5h4][%mdl 32]} 30. g4 h4 {Weighted Error Value: White=0.34/Black=0.14 (very precise)} 0-1